{"text_format":"1","workbook":"xlsx","n_sheets":1,"sheets":["Качественные"],"not_rendered":{"charts":0,"images":0,"macros":1,"external_links":0,"defined_names":1,"comments":0,"pivot_tables":0},"unopened":[],"bounds":{"document_bytes":16777216,"sheet_cells":100000,"rows_first":2000,"rows_last":500,"rows_between":2000,"halvings":0,"cell_chars":16384,"cell_head_chars":4096},"cells_cut":0,"cells_raw":0,"read":"whole","date_system":"1900"}

{"sheet":"Качественные","index":0,"n_rows":8,"n_cols":20,"rows_kept":8,"cut":false,"hidden":false,"merged":[[0,5,0,7],[0,8,0,10],[0,11,0,13],[0,14,0,16],[0,17,0,19]]}
[null,null,null,null,null,"Итого",null,null,"ОАО \"Татнефть\"",null,null,"ДЗО ОАО \"Татнефть\"",null,null,"Сервисные УК",null,null,"Другие заказчики"]
["Предприятие ","Название показателя","ед.измерения","Год ","Месяц","Прошлый год Итого","Текущий год  Итого","Процент  Итого","Прошлый год  ОАО \"Татнефть\"","Текущий год ОАО \"Татнефть\"","Процент ОАО \"Татнефть\"","Прошлый год ДЗО ОАО \"Татнефть\"","Текущий год  ДЗО ОАО \"Татнефть\"","Процент ДЗО ОАО \"Татнефть\"","Прошлый год Сервисные УК","Текущий год Сервисные УК","Процент Сервисные УК","Прошлый год Другие заказчики","Текущий год  Другие заказчики","Процент Другие заказчики"]
["ООО \"УК\"Татбурнефть\"","Осложнение при строительстве скважин (Эксплуатационные скважины без битума)","час/1000м.",2012,"июль",{"$f":"#REF!","v":{"$error":"#REF!"}},{"$f":"IFERROR(ROUND((((ROUND((J3*#REF!),2))+(ROUND((M3*#REF!),2))+(ROUND((Качественные!S3*#REF!),2)))/#REF!),0),0)","v":0},{"$f":"IFERROR(G3/F3*100,0)","v":0},{"$f":"#REF!","v":{"$error":"#REF!"}},61,{"$f":"IFERROR(J3/I3*100,0)","v":0},{"$f":"#REF!","v":{"$error":"#REF!"}},27,{"$f":"IFERROR(M3/L3*100,0)","v":0},{"$f":"#REF!","v":{"$error":"#REF!"}},null,{"$f":"IFERROR(P3/O3*100,0)","v":0},{"$f":"#REF!","v":{"$error":"#REF!"}},16,{"$f":"IFERROR(S3/R3*100,0)","v":0}]
["ООО \"УК\"Татбурнефть\"","Осложнение при строительстве скважин (Битумные скважины)","час/1000м.",2014,"январь",{"$f":"#REF!","v":{"$error":"#REF!"}},{"$f":"ROUND((ROUND((I4*#REF!), 2)/#REF!),0)","v":{"$error":"#REF!"}},0,{"$f":"#REF!","v":{"$error":"#REF!"}},0,0,{"$f":"#REF!","v":{"$error":"#REF!"}},0,0,{"$f":"#REF!","v":{"$error":"#REF!"}},0,0,{"$f":"#REF!","v":{"$error":"#REF!"}},0,0]
["ООО \"УК\"Татбурнефть\"","Осложнение при строительстве скважин (Битумные скважины)","час/1000м.",2014,"февраль",{"$f":"#REF!","v":{"$error":"#REF!"}},{"$f":"ROUND((ROUND((I5*#REF!), 2)/#REF!),0)","v":{"$error":"#REF!"}},0,{"$f":"#REF!","v":{"$error":"#REF!"}},0,0,{"$f":"#REF!","v":{"$error":"#REF!"}},null,0,{"$f":"#REF!","v":{"$error":"#REF!"}},null,0,{"$f":"#REF!","v":{"$error":"#REF!"}},null,0]
["ООО \"УК\"Татбурнефть\"","Осложнение при строительстве скважин (Эксплуатационные скважины без битума)","час/1000м.",2012,"август",{"$f":"#REF!","v":{"$error":"#REF!"}},{"$f":"IFERROR(ROUND((((ROUND((J6*#REF!),2))+(ROUND((M6*#REF!),2))+(ROUND((Качественные!S6*#REF!),2)))/#REF!),0),0)","v":0},0,{"$f":"#REF!","v":{"$error":"#REF!"}},58,0,{"$f":"#REF!","v":{"$error":"#REF!"}},67,0,{"$f":"#REF!","v":{"$error":"#REF!"}},null,0,{"$f":"#REF!","v":{"$error":"#REF!"}},24,0]
["ООО \"УК\"Татбурнефть\"","Осложнение при строительстве скважин (Битумные скважины)","час/1000м.",2014,"март",{"$f":"#REF!","v":{"$error":"#REF!"}},{"$f":"ROUND((ROUND((I7*#REF!), 2)/#REF!),0)","v":{"$error":"#REF!"}},0,{"$f":"#REF!","v":{"$error":"#REF!"}},0,0,{"$f":"#REF!","v":{"$error":"#REF!"}},null,0,{"$f":"#REF!","v":{"$error":"#REF!"}},null,0,{"$f":"#REF!","v":{"$error":"#REF!"}},null,0]
["ООО \"УК\"Татбурнефть\"","Осложнение при строительстве скважин (Битумные скважины)","час/1000м.",2014,"апрель",{"$f":"#REF!","v":{"$error":"#REF!"}},{"$f":"ROUND((ROUND((I8*#REF!), 2)/#REF!),0)","v":{"$error":"#REF!"}},0,{"$f":"#REF!","v":{"$error":"#REF!"}},7.6,0,{"$f":"#REF!","v":{"$error":"#REF!"}},null,0,{"$f":"#REF!","v":{"$error":"#REF!"}},null,0,{"$f":"#REF!","v":{"$error":"#REF!"}},null,0]